{"text_format":"3","workbook":"xlsx","n_sheets":2,"sheets":["Form Yanıtları 1","Sayfa1"],"not_rendered":{"defined_names":2},"read":"whole","date_system":"1900"}

{"sheet":"Form Yanıtları 1","index":0,"n_rows":186,"n_cols":11,"rows_kept":186,"merged":[[0,0,0,6]]}
["2020-2021 Eğitim Öğretim Yılı Bahar Yarıyılı Sonu Üç Ders Sınav Başvuru Listesi"]
["Adınız:","Soyadınız","Okul \nNumaranız","Bölümünüz","Danışmanınız","Başvuru Yapılan Ders (1. Ders)","Dersin Öğretim Elemanı (1.Ders)","Başvuru Sonucu \n(Uygun/Uygun Değildir)","Açıklama \n(Uygun Olmayanlar İçin)","Sınav Tarihi ","Saati"]
["Eda Nur","DELEN",182103019,"Aşçılık","Öğr.Gör. Arzu Güzel Çakmak","Yabancı Dil - I","Dr.Öğr.Üyesi Gülay BAYRAMOĞLU","UYGUNDUR",null,{"$f":"IF(H3=\"UYGUNDUR\",\"25.06.2021\",\"\")","v":"25.06.2021"},"11.00-17.00"]
["Eda Nur","DELEN",182103019,"Aşçılık","Öğr.Gör. Arzu Güzel Çakmak","Yönetim ve Organizasyon","Öğr.Gör. Fatih TAŞPINAR","UYGUNDUR",null,{"$f":"IF(H4=\"UYGUNDUR\",\"25.06.2021\",\"\")","v":"25.06.2021"},"11.00-17.00"]
["Tuğba","ERGAN",192103016,"Aşçılık","Öğr.Gör. Mehmet Emin Tura","Mesleki Yabancı Dil - II","Öğr.Gör. Yasin ÖZASLAN","UYGUNDUR",null,"25.06.2021","11.00-17.00"]
["Şükriye İrem","ÖZ",192103022,"Aşçılık","Öğr.Gör. Mehmet Emin Tura","Mesleki Yabancı Dil - II","Öğr.Gör. Yasin ÖZASLAN","UYGUNDUR",null,"25.06.2021","11.00-17.00"]
["Elanur","YILMAZ",192103030,"Aşçılık","Öğr.Gör. Mehmet Emin Tura","Yemek süsleme sanatı ","Öğr.Gör. Mehmet Emin TURA","UYGUNDUR",null,"25.06.2021","11.00-17.00"]
["Elanur","YILMAZ",192103030,"Aşçılık","Öğr.Gör. Mehmet Emin Tura","Mesleki Proje","Öğr.Gör. Fatih TAŞPINAR","UYGUNDUR",null,"25.06.2021","11.00-17.00"]
["Elanur","YILMAZ",192103030,"Aşçılık","Öğr.Gör. Mehmet Emin Tura","Mesleki Yabancı Dil - II","Öğr.Gör. Yasin ÖZASLAN","UYGUNDUR",null,"25.06.2021","11.00-17.00"]
["İrem","AYDIN",192103074,"Aşçılık","Öğr.Gör. Mehmet Emin Tura","Mesleki Yabancı Dil - II","Öğr.Gör. Yasin ÖZASLAN","UYGUNDUR",null,"25.06.2021","11.00-17.00"]
["Yunusemre ","İLERI",192103009,"Aşçılık","Öğr.Gör. Mehmet Emin Tura","Hijyen ve Sanitasyon",null,"UYGUN DEĞİLDİR","ALINMAYAN DERS VAR",""]
["Yunusemre ","İLERI",192103009,"Aşçılık","Öğr.Gör. Mehmet Emin Tura","Mutfak Terminolojisi",null,"UYGUN DEĞİLDİR","ALINMAYAN DERS VAR",""]
["Yunusemre ","İLERI",192103009,"Aşçılık","Öğr.Gör. Mehmet Emin Tura","Genel Turizm",null,"UYGUN DEĞİLDİR","ALINMAYAN DERS VAR",""]
["Ceyda","ÖZLEM",192103054,"Aşçılık","Öğr.Gör. Mehmet Emin Tura","Yabancı Dil - I",null,"UYGUN DEĞİLDİR","MEZUN KONUMDA",""]
["Gülay","SUBAŞIGÜLLER",192103048,"Aşçılık","Öğr.Gör. Mehmet Emin Tura","Atatürk İlkeleri ve İnkılap Tarihi - I","Öğr.Gör. Suzan ÜNAL","UYGUNDUR",null,"25.06.2021","11.00-17.00"]
["Ece","ÇAVDAR",192103031,"Aşçılık","Öğr.Gör. Mehmet Emin Tura","Turizmde Etik","Öğr.Gör. Gülsüm YURTSEVEN","UYGUNDUR",null,"25.06.2021","11.00-17.00"]
["Ece","ÇAVDAR",192103031,"Aşçılık","Öğr.Gör. Mehmet Emin Tura","Mesleki Yabancı Dil - II","Öğr.Gör. Yasin ÖZASLAN","UYGUNDUR",null,"25.06.2021","11.00-17.00"]
["Muhammet İmran ","TARKAN ",192103023,"Aşçılık","Öğr.Gör. Mehmet Emin Tura","Yiyecek ve İçecek Maliyet Kontrolü ","Öğr.Gör. Fatih TAŞPINAR","UYGUNDUR",null,"25.06.2021","11.00-17.00"]
["Burak","ŞEN",192103044,"Aşçılık","Öğr.Gör. Mehmet Emin Tura","Türk Dili - II",null,"UYGUN DEĞİLDİR","3'TEN FAZLA ZAYIFI VAR",""]
["Burak","ŞEN",192103044,"Aşçılık","Öğr.Gör. Mehmet Emin Tura","Atatürk İlkeleri ve İnkılap Tarihi - II",null,"UYGUN DEĞİLDİR","3'TEN FAZLA ZAYIFI VAR",""]
["Burak","ŞEN",192103044,"Aşçılık","Öğr.Gör. Mehmet Emin Tura","Turizim ve çevre",null,"UYGUN DEĞİLDİR","3'TEN FAZLA ZAYIFI VAR",""]
["Pelin","BÜKSE",192105032,"Bilgisayar Programcılığı","Öğr. Gör. Yahya Özdemir","Girişimcilik","Öğr.Gör. Yahya ÖZDEMİR","UYGUNDUR",null,"25.06.2021","10:00:00"]
["Tuğçe","AKSU",102106046,"Bilgisayar Programcılığı","Öğr.Gör. Cansu Ayvaz Güven","Veri Tabanı Yönetim Sistemleri-II","Öğr.Gör. Cansu AYVAZ GÜVEN","UYGUNDUR",null,"25.06.2021","11:00:00"]
["Tuğçe","AKSU",102106046,"Bilgisayar Programcılığı","Öğr.Gör. Cansu Ayvaz Güven","Entegre Ofis","Öğr.Gör. Cansu AYVAZ GÜVEN","UYGUNDUR",null,"25.06.2021","12:00:00"]
["Emre","BİLGİÇ",122105038,"Bilgisayar Programcılığı","Öğr.Gör. Cansu Ayvaz Güven","Bilgisayar Donanımı","Öğr.Gör. Yahya ÖZDEMİR","UYGUNDUR",null,"25.06.2021","10:30:00"]
["Yasin Efe ","TÜRKANDLI",182105003,"Bilgisayar Programcılığı","Öğr.Gör. Salih Yıldız","Bilgi Ve İletişim Teknolojileri","Öğr.Gör. Tuğrul AKTAŞ","UYGUNDUR",null,"25.06.2021","12:30:00"]
["Mehmet","ÖZAY",192105014,"Bilgisayar Programcılığı","Öğr.Gör. Yahya Özdemir","Mobil Programlama","Dr.Öğr.Üyesi Yunus ÖZEN","UYGUNDUR",null,"25.06.2021","13:00:00"]
["Hasibe Gizem","ŞAHİN",192106039,"Bilgisayar Programcılığı","Öğr.Gör. Yahya Özdemir","Veri Tabanı - II","Öğr.Gör. Cansu AYVAZ GÜVEN","UYGUNDUR",null,"25.06.2021","11:00:00"]
["Ahmet Said ","ERDEM",192106035,"Bilgisayar Programcılığı","Öğr.Gör. Yahya Özdemir","Bilgi Ve İletişim Teknolojileri","Öğr.Gör. Tuğrul AKTAŞ","UYGUNDUR",null,"25.06.2021","12:30:00"]
["Enes","VATANSEVER",192105011,"Bilgisayar Programcılığı","Öğr.Gör. Yahya Özdemir","Bilgisayar Yardımıyla Tasarım Modelleme",null,"UYGUN DEĞİLDİR","ALINMAYAN DERS VAR",""]
["Enes","VATANSEVER",192105011,"Bilgisayar Programcılığı","Öğr.Gör. Yahya Özdemir","Bilgi Ve İletişim Teknolojileri",null,"UYGUN DEĞİLDİR","ALINMAYAN DERS VAR",""]
["Feyzanur","KAPLAN",192105039,"Bilgisayar Programcılığı","Öğr.Gör. Yahya Özdemir","Mobil Programlama","Dr.Öğr.Üyesi Yunus ÖZEN","UYGUNDUR",null,"25.06.2021","13:00:00"]
["Umut ","ERDEM",192106048,"Bilgisayar Programcılığı","Öğr.Gör. Yahya Özdemir","Bilgi ve iletişim teknojileri","Öğr.Gör. Tuğrul AKTAŞ","UYGUNDUR",null,"25.06.2021","12:30:00"]
["Sait Miraç","AKAR",192106020,"Bilgisayar Programcılığı","Öğr.Gör. Yahya Özdemir","Bilgi Ve İletişim Teknolojileri ","Öğr.Gör. Tuğrul AKTAŞ","UYGUNDUR",null,"25.06.2021","12:30:00"]
["Sait Miraç","AKAR",192106020,"Bilgisayar Programcılığı","Öğr.Gör. Yahya Özdemir","Görsel Programlama-II","Öğr.Gör. Tuğrul AKTAŞ","UYGUNDUR",null,"25.06.2021","13:30:00"]
["Ebrar","YILMAZ",192105045,"Bilgisayar Programcılığı","Öğr.Gör. Yahya Özdemir","Bilgi ve İletişim Teknolojileri","Öğr.Gör. Tuğrul AKTAŞ","UYGUNDUR",null,"25.06.2021","12:30:00"]
["Muhammet Musa","AYDIN",192106009,"Bilgisayar Programcılığı","Öğr.Gör. Yahya Özdemir","Bilgi ve İletişim Teknolojileri",null,"UYGUN DEĞİLDİR","ALINMAYAN DERS VAR",""]
["Muhammet Musa","AYDIN",192106009,"Bilgisayar Programcılığı","Öğr.Gör. Yahya Özdemir","Yabancı Dil - I",null,"UYGUN DEĞİLDİR","ALINMAYAN DERS VAR",""]
["Muhammet Musa","AYDIN",192106009,"Bilgisayar Programcılığı","Öğr.Gör. Yahya Özdemir","Türk Dili - I",null,"UYGUN DEĞİLDİR","ALINMAYAN DERS VAR",""]
["Doğukan ","KARAARSLAN",192106051,"Bilgisayar Programcılığı","Öğr.Gör. Yahya Özdemir","Girişimcilik ",null,"UYGUN DEĞİLDİR","ALINMAYAN DERS VAR",""]
["Burak","UZUN",192106036,"Bilgisayar Programcılığı","Öğr.Gör. Yahya Özdemir","Veri Tabanı - II","Öğr. Gör. Cansu Ayvaz Güven","UYGUNDUR",null,"25.06.2021","11:00:00"]
["Burak","UZUN",192106036,"Bilgisayar Programcılığı","Öğr.Gör. Yahya Özdemir","Atatürk İlkeleri ve İnkılap Tarihi - I","Dr.Öğr.Üyesi Recep ÇELİK","UYGUNDUR",null,"25.06.2021","13.00-15.00"]
["Uğur","ÇANGAL",192105054,"Bilgisayar Programcılığı","Öğr.Gör. Yahya Özdemir","Bilgi ve iletişim teknolojileri ","Öğr.Gör. Tuğrul AKTAŞ","UYGUNDUR",null,"25.06.2021","12:30:00"]
["Uğur","ÇANGAL",192105054,"Bilgisayar Programcılığı","Öğr.Gör. Yahya Özdemir","İçerik yönetimi ","Dr.Öğr.Üyesi Özlem EFİLOĞLU KURT","UYGUNDUR",null,"25.06.2021","14:00:00"]
["Uğur","ÇANGAL",192105054,"Bilgisayar Programcılığı","Öğr.Gör. Yahya Özdemir","Web projeleri","Öğr.Gör. Cansu AYVAZ GÜVEN","UYGUNDUR",null,"25.06.2021","15:00:00"]
["Umut","ERDEM",192106048,"Bilgisayar Programcılığı","Öğr.Gör. Yahya Özdemir","Bilgi ve İletişim Teknojileri","Öğr.Gör. Tuğrul AKTAŞ","UYGUNDUR",null,"25.06.2021","12:30:00"]
["Esra","ARAS",192105031,"Bilgisayar Programcılığı","Öğr.Gör. Yahya Özdemir","Bilgi ve İletişim Teknojileri","Öğr.Gör. Tuğrul AKTAŞ","UYGUNDUR",null,"25.06.2021","12:30:00"]
["Kerim","AKYOL",192105016,"Bilgisayar Programcılığı","Öğr.Gör. Yahya Özdemir","Görsel Programlama - II","Öğr.Gör. Tuğrul AKTAŞ","UYGUNDUR",null,"25.06.2021","13:30:00"]
["Kerim","AKYOL",192105016,"Bilgisayar Programcılığı","Öğr.Gör. Yahya Özdemir","Veri Tabanı - II","Öğr.Gör. Cansu AYVAZ GÜVEN","UYGUNDUR",null,"25.06.2021","11:00:00"]
["Kerim","AKYOL",192105016,"Bilgisayar Programcılığı","Öğr.Gör. Yahya Özdemir","Bilgi Ve İletişim Teknolojileri","Öğr.Gör. Tuğrul AKTAŞ","UYGUNDUR",null,"25.06.2021","12:30:00"]
["Muratcan ","GÖĞEBAKAN",192106012,"Bilgisayar Programcılığı","Öğr.Gör. Yahya Özdemir","Bilgi ve İletişim Teknolojileri","Öğr.Gör. Tuğrul AKTAŞ","UYGUNDUR",null,"25.06.2021","12:30:00"]
["Muratcan ","GÖĞEBAKAN",192106012,"Bilgisayar Programcılığı","Öğr.Gör. Yahya Özdemir","Veri Tabanı - II","Öğr.Gör. Cansu AYVAZ GÜVEN","UYGUNDUR",null,"25.06.2021","11:00:00"]
["Caner","ÖZKUM",192106045,"Bilgisayar Programcılığı","Öğr.Gör. Yahya Özdemir","Bilgi Ve İletişim Teknolojileri","Öğr.Gör. Tuğrul AKTAŞ","UYGUNDUR",null,"25.06.2021","12:30:00"]
["Burak","USTA",192106049,"Bilgisayar Programcılığı","Öğr.Gör. Yahya Özdemir","Bilgi Ve İletişim Teknolojileri","Öğr.Gör. Tuğrul AKTAŞ","UYGUNDUR",null,"25.06.2021","12:30:00"]
["Hüseyin","YILMAZ",192106011,"Bilgisayar Programcılığı","Öğr.Gör. Yahya Özdemir","Veri Tabanı - I","Öğr.Gör. Cansu AYVAZ GÜVEN","UYGUNDUR",null,"25.06.2021","14:30:00"]
["Hüseyin","YILMAZ",192106011,"Bilgisayar Programcılığı","Öğr.Gör. Yahya Özdemir","Matematik","Öğr.Gör. Salih YILDIZ","UYGUNDUR",null,"25.06.2021","15:30:00"]
["Hüseyin","YILMAZ",192106011,"Bilgisayar Programcılığı","Öğr.Gör. Yahya Özdemir","Girişimcilik","Öğr.Gör. Yahya ÖZDEMİR","UYGUNDUR",null,"25.06.2021","10:00:00"]
["Ahmet Melih","TUNÇ",192105078,"Bilgisayar Programcılığı","Öğr.Gör. Yahya Özdemir","Bilgisayar Yardımıyla Tasarım Modelleme","Öğr.Gör. Tuğrul AKTAŞ","UYGUNDUR",null,"25.06.2021","11:30:00"]
["Mustafa","SOYSAL",182109051,"Deniz Ulaştırma ve İşletme","Öğr.Gör. Bayram Deniz","Tanker Yük İşlemleri ve Dengesi","Öğr.Gör. Nurettin BÜYÜK","UYGUNDUR",null,"25.06.2021","13.00"]
["Yunus Emre","ER",192110027,"Deniz Ulaştırma ve İşletme","Öğr.Gör. Nurettin Büyük","Denizde Emniyet ve Gemide Güvenlik - III","Ömer KESİCİ","UYGUNDUR",null,"25.06.2021","13.00"]
["Olgahan","GEDIKLI",192109059,"Deniz Ulaştırma ve İşletme","Öğr.Gör. Nurettin Büyük","Yersel Seyir - I","Öğr.Gör. M. Hakan İLAGA","UYGUNDUR",null,"25.06.2021","13.00"]
["Hasan Şahan","IŞIK",192109038,"Deniz Ulaştırma ve İşletme","Öğr.Gör. Nurettin Büyük","Deniz Ticari İşletmeciliği Ve Lojistliği","Öğr.Gör. Mehmet ÖZKAN","UYGUNDUR",null,"25.06.2021","13.00"]
["Muzaffer Bora ","GÜMÜŞTAŞ ",192109006,"Deniz Ulaştırma ve İşletme","Öğr.Gör. Nurettin Büyük","Gemi Manevrası","Öğr.Gör. Mehmet YAHŞİ","UYGUNDUR",null,"25.06.2021","15.00"]
["Tuğkan","BÜYÜKETI",192109045,"Deniz Ulaştırma ve İşletme","Öğr.Gör. Nurettin Büyük","Tanker Yük İşlemleri Ve Dengesi","Öğr.Gör. Nurettin BÜYÜK","UYGUNDUR",null,"25.06.2021","13.00"]
["Tuğkan","BÜYÜKETI",192109045,"Deniz Ulaştırma ve İşletme","Öğr.Gör. Nurettin Büyük","Gemi Manevrası","Öğr.Gör. Mehmet YAHŞİ","UYGUNDUR",null,{"$f":"IF(H65=\"UYGUNDUR\",\"25.06.2021\",\"\")","v":"25.06.2021"},"15.00"]
["Kutluhan","TURGUT",172109056,"Deniz Ulaştırma ve İşletme","Öğr.Gör. Nurettin Büyük","Yersel Seyir - I",null,"UYGUN DEĞİLDİR","AKTS YÜKÜ TAMAMLANMAMIŞ",""]
["Kutluhan","TURGUT",172109056,"Deniz Ulaştırma ve İşletme","Öğr.Gör. Nurettin Büyük","Göksel Seyir - I",null,"UYGUN DEĞİLDİR","AKTS YÜKÜ TAMAMLANMAMIŞ",""]
["Enes","TOPÇU",192110026,"Deniz Ulaştırma ve İşletme","Öğr.Gör. Nurettin Büyük","Deniz Ticari İşletmeciliği Ve Lojistiği ","Öğr.Gör. Mehmet ÖZKAN","UYGUNDUR",null,"25.06.2021","13.00"]
["Enes","TOPÇU",192110026,"Deniz Ulaştırma ve İşletme","Öğr.Gör. Nurettin Büyük","Denizde Emniyet Ve Gemide Güvenlik -IV","Öğr.Gör. Nurettin BÜYÜK","UYGUNDUR",null,"25.06.2021","15.00"]
["Dilara","AKYOL",192110018,"Deniz Ulaştırma ve İşletme","Öğr.Gör. Nurettin Büyük","Yersel Seyir - I","Öğr. Gör. Mustafa Hakan İLAGA","UYGUNDUR",null,"25.06.2021","13.00"]
["Dilara","AKYOL",192110018,"Deniz Ulaştırma ve İşletme","Öğr.Gör. Nurettin Büyük","Matematik ","Öğr. Gör. Salih YILDIZ","UYGUNDUR",null,"25.06.2021","15.00"]
["Muhammed Zeyd ","ENSARIOĞLU ",192111016,"Deniz ve Liman İşletmeciliği","Öğr.Gör. Aslı Özyılmaz","Yük işlemleri Ve Gemi Stabilitesi","Öğr.Gör. Hakan KAHRAMANER","UYGUNDUR",null,"25.06.2021","16.00"]
["Sıla","MUMCU ",192111066,"Deniz ve Liman İşletmeciliği","Öğr.Gör. Aslı Özyılmaz","Denizcilik İngilizcesi - IV","Öğr.Gör. Aslı ÖZYILMAZ","UYGUNDUR",null,"25.06.2021","14.00"]
["Hamit Kaan","YÜCE",192111039,"Deniz ve Liman İşletmeciliği","Öğr.Gör. Aslı Özyılmaz","Denizcilik İngilizcesi - IV","Öğr.Gör. Aslı ÖZYILMAZ","UYGUNDUR",null,"25.06.2021","14.00"]
["Samet ","KAPLAN",192111054,"Deniz ve Liman İşletmeciliği","Öğr.Gör. Aslı Özyılmaz","Denizcilikte Sayısal Yöntemler","Dr.Öğr.Üyesi Duygu YILDIRIM PEKŞEN","UYGUNDUR",null,"25.06.2021","15.00"]
["Samet ","KAPLAN",192111054,"Deniz ve Liman İşletmeciliği","Öğr.Gör. Aslı Özyılmaz","Atatürk İlkeleri ve İnklap Tarihi-I","Dr.Öğr.Üyesi Recep ÇELİK","UYGUNDUR",null,"25.06.2021","13.00-15.00"]
["Görkem","TIRYAKI",192111062,"Deniz ve Liman İşletmeciliği","Öğr.Gör. Aslı Özyılmaz","Deniz Hukuku Ve Uluslararası Denizcilik Sözleşmeleri",null,"UYGUN DEĞİLDİR","ALINMAYAN DERS VAR",""]
["Görkem","TIRYAKI",192111062,"Deniz ve Liman İşletmeciliği","Öğr.Gör. Aslı Özyılmaz","Denizcilikte İnsan Kaynakları ve İş Güvenliği",null,"UYGUN DEĞİLDİR","ALINMAYAN DERS VAR",""]
["Mert","KARAGEDIK",192111074,"Deniz ve Liman İşletmeciliği","Öğr.Gör. Aslı Özyılmaz","Denizcilikte Sayısal Yöntemler",null,"UYGUN DEĞİLDİR","3'TEN FAZLA ZAYIFI VAR",""]
["Mert","KARAGEDIK",192111074,"Deniz ve Liman İşletmeciliği","Öğr.Gör. Aslı Özyılmaz","Ulaştırma Hizmetleri",null,"UYGUN DEĞİLDİR","3'TEN FAZLA ZAYIFI VAR",""]
["Mert","KARAGEDIK",192111074,"Deniz ve Liman İşletmeciliği","Öğr.Gör. Aslı Özyılmaz","Gemi Acenteliği",null,"UYGUN DEĞİLDİR","3'TEN FAZLA ZAYIFI VAR",""]
["Mustafa Gökhan","SIRPANLI",172111003,"Deniz ve Liman İşletmeciliği","Öğr.Gör. Aslı Özyılmaz","Denizcilikte Sayısal Yöntemler",null,"UYGUN DEĞİLDİR","ORTALAMA DÜŞÜK",""]
["Mustafa Gökhan","SIRPANLI",172111003,"Deniz ve Liman İşletmeciliği","Öğr.Gör. Aslı Özyılmaz","Ulaştırma Hizmetleri",null,"UYGUN DEĞİLDİR","ORTALAMA DÜŞÜK",""]
["Mustafa Gökhan","SIRPANLI",172111003,"Deniz ve Liman İşletmeciliği","Öğr.Gör. Aslı Özyılmaz","Denizcilikte İnsan kaynakları ve iş güvenliği",null,"UYGUN DEĞİLDİR","ORTALAMA DÜŞÜK",""]
["Recepcan","ŞARE",192112033,"Deniz ve Liman İşletmeciliği","Öğr.Gör. Duygu Yıldırım Pekşen","Denizcilikte Sayısal Yöntemler ","Dr.Öğr.Üyesi Duygu YILDIRIM PEKŞEN","UYGUNDUR",null,"25.06.2021","15:00:00"]
["Cansu","KARAHASAN",192112061,"Deniz ve Liman İşletmeciliği","Öğr.Gör. Duygu Yıldırım Pekşen","Denizcilik İngilizcesi - IV","Öğr.Gör. Aslı ÖZYILMAZ","UYGUNDUR",null,"25.06.2021","14:00:00"]
["Cansu","KARAHASAN",192112061,"Deniz ve Liman İşletmeciliği","Öğr.Gör. Duygu Yıldırım Pekşen","Yük İşlemleri ve Gemi Stabilitesi","Öğr.Gör. Hakan KAHRAMANER","UYGUNDUR",null,"25.06.2021","16:00:00"]
["Burak","UÇAR",192112025,"Deniz ve Liman İşletmeciliği","Öğr.Gör. Duygu Yıldırım Pekşen","Lojistik Yönetimi - II",null,"UYGUN DEĞİLDİR","ORTALAMA DÜŞÜK",""]
["Erol","ÖKSÜZ",182112020,"Deniz ve Liman İşletmeciliği","Öğr.Gör. Okan Büyükacar","Matematik","Dr.Öğr.Üyesi Cumali ÇELİK","UYGUNDUR",null,"25.06.2021","11:00:00"]
["Erol","ÖKSÜZ",182112021,"Deniz ve Liman İşletmeciliği","Öğr.Gör. Okan Büyükacar","Seyir ","Öğr.Gör. Hüseyin Caner TAŞCI","UYGUNDUR",null,"25.06.2021","12:00:00"]
["Erol","ÖKSÜZ",182112022,"Deniz ve Liman İşletmeciliği","Öğr.Gör. Okan Büyükacar","Yabancı Dil-I","Öğr.Gör. Baki KARAKUŞ","UYGUNDUR",null,"25.06.2021","10.00-12.00"]
["Feyza","KUTOĞLU",182111045,"Deniz ve Liman İşletmeciliği","Öğr.Gör. Okan Büyükacar","Ulaştırma Hizmetleri ","Öğr.Gör. Okan BÜYÜKACAR","UYGUNDUR",null,"25.06.2021","12:00:00"]
["Feyza","KUTOĞLU",182111045,"Deniz ve Liman İşletmeciliği","Öğr.Gör. Okan Büyükacar","\tDenizcilik İngilizcesi - II","Öğr.Gör. Aslı ÖZYILMAZ","UYGUNDUR",null,"25.06.2021","14:00:00"]
["Feyza","KUTOĞLU",182111045,"Deniz ve Liman İşletmeciliği","Öğr.Gör. Okan Büyükacar","Tehlikeli yük taşımacılığı ","Dr.Öğr.Üyesi Duygu YILDIRIM PEKŞEN","UYGUNDUR",null,"25.06.2021","15:00:00"]
["Gürkan","GÖNDEN",182111051,"Deniz ve Liman İşletmeciliği","Öğr.Gör. Okan Büyükacar","Ulaştırma Hizmetleri ","Öğr.Gör. Okan BÜYÜKACAR","UYGUNDUR",null,"25.06.2021","12:00:00"]
["Gürkan","GÖNDEN",182111051,"Deniz ve Liman İşletmeciliği","Öğr.Gör. Okan Büyükacar","Denizcilik İngilizcesi - I","Öğr.Gör. Aslı ÖZYILMAZ","UYGUNDUR",null,"25.06.2021","14:00:00"]
["Gürkan","GÖNDEN",182111051,"Deniz ve Liman İşletmeciliği","Öğr.Gör. Okan Büyükacar","Tehlikeli yük taşımacılığı","Dr.Öğr.Üyesi Duygu YILDIRIM PEKŞEN","UYGUNDUR",null,"25.06.2021","15:00:00"]
["İrem","ÖNER",192113024,"İklimlendirme ve Soğutma Teknolojisi","Öğr.Gör. Ahmet Yüksel","Havalandırma Sistemleri","Dr.Öğr.Üyesi Gülenay Alevay KILIÇ","UYGUNDUR",null,"25.06.2021","11.00"]
["İrem","ÖNER",192113024,"İklimlendirme ve Soğutma Teknolojisi","Öğr.Gör. Ahmet Yüksel","Laboratuvar - II ","Dr.Öğr.Üyesi Gülenay Alevay KILIÇ","UYGUNDUR",null,"25.06.2021","14.00"]
["Talha Metin","TARHANACIOĞLU",192113022,"İklimlendirme ve Soğutma Teknolojisi","Öğr.Gör. Ahmet Yüksel","Havalandırma Sistemleri","Dr.Öğr.Üyesi Gülenay Alevay KILIÇ","UYGUNDUR",null,"25.06.2021","11.00"]
["Talha Metin","TARHANACIOĞLU",192113022,"İklimlendirme ve Soğutma Teknolojisi","Öğr.Gör. Ahmet Yüksel","Atatürk İlkeleri ve İnkilap tarihi - 1","Dr.Öğr.Üyesi Hacı Emin SEZER","UYGUNDUR",null,"25.06.2021","13.00-15.00"]
["Kemal Bilal","ARICI",192113028,"İklimlendirme ve Soğutma Teknolojisi","Öğr.Gör. Ahmet Yüksel","Havalandırma Sistemleri","Dr.Öğr.Üyesi Gülenay Alevay KILIÇ","UYGUNDUR",null,"25.06.2021","11.00"]
["Kemal Bilal","ARICI",192113028,"İklimlendirme ve Soğutma Teknolojisi","Öğr.Gör. Ahmet Yüksel","Soğutma Sistem Tasarımı","Öğr.Gör. Mehmet ŞİRİN","UYGUNDUR",null,"25.06.2021","10.00"]
["Kemal Bilal","ARICI",192113038,"İklimlendirme ve Soğutma Teknolojisi","Öğr.Gör. Ahmet Yüksel","Laboratuvar - II ","Dr.Öğr.Üyesi Gülenay Alevay KILIÇ","UYGUNDUR",null,"25.06.2021","14.00"]
["Fahrettin","CENGİZ",192113013,"İklimlendirme ve Soğutma Teknolojisi","Öğr.Gör. Ahmet Yüksel","Isı Transferi",null,"UYGUN DEĞİLDİR","ALINMAYAN DERS VAR",""]
["Oğuzhan","GÜR",192113026,"İklimlendirme ve Soğutma Teknolojisi","Öğr.Gör. Ahmet Yüksel","Havalandırma Sistemleri",null,"UYGUN DEĞİLDİR","ALINMAYAN DERS VAR",""]
["Oğuzhan","GÜR",192113026,"İklimlendirme ve Soğutma Teknolojisi","Öğr.Gör. Ahmet Yüksel","Laboratuvar - II ",null,"UYGUN DEĞİLDİR","ALINMAYAN DERS VAR",""]
["Bedirhan","TOK",192113030,"İklimlendirme ve Soğutma Teknolojisi","Öğr.Gör. Ahmet Yüksel","İklimlendirme Esasları",null,"UYGUN DEĞİLDİR","ALINMAYAN DERS VAR",""]
["Bedirhan","TOK",192113030,"İklimlendirme ve Soğutma Teknolojisi","Öğr.Gör. Ahmet Yüksel","Isı Transferi",null,"UYGUN DEĞİLDİR","3'TEN FAZLA ZAYIFI VAR",""]
["Bedirhan","TOK",192113030,"İklimlendirme ve Soğutma Teknolojisi","Öğr.Gör. Ahmet Yüksel","Isıtma Sistemleri",null,"UYGUN DEĞİLDİR","3'TEN FAZLA ZAYIFI VAR",""]
["Abdurrahman","ÇELİK",192113033,"İklimlendirme ve Soğutma Teknolojisi","Öğr.Gör. Ahmet Yüksel","Bilgisayar Destekli Çizim","Öğr.Gör. Ahmet YÜKSEL","UYGUNDUR",null,"25.06.2021","11:00:00"]
["Abdurrahman","ÇELİK",192113034,"İklimlendirme ve Soğutma Teknolojisi","Öğr.Gör. Ahmet Yüksel","Laboratuvar - II ","Dr.Öğr.Üyesi Gülenay Alevay KILIÇ","UYGUNDUR",null,"25.06.2021","14:00:00"]
["Ahmet","ATIŞ",192113019,"İklimlendirme ve Soğutma Teknolojisi","Öğr.Gör. Ahmet Yüksel","Yalıtım Teknolojisi","Öğr.Gör. Ahmet YÜKSEL","UYGUNDUR",null,"25.06.2021","10:00:00"]
["Ahmet","ATIŞ",192113019,"İklimlendirme ve Soğutma Teknolojisi","Öğr.Gör. Ahmet Yüksel","Laboratuvar - II ","Dr.Öğr.Üyesi Gülenay Alevay KILIÇ","UYGUNDUR",null,"25.06.2021","14:00:00"]
["Ahmet","ATIŞ",192113019,"İklimlendirme ve Soğutma Teknolojisi","Öğr.Gör. Ahmet Yüksel","Havalandırma Sistemi","Dr.Öğr.Üyesi Gülenay Alevay KILIÇ","UYGUNDUR",null,"25.06.2021","11:00:00"]
["Halilcan","GÜMÜŞTEKIN",192113027,"İklimlendirme ve Soğutma Teknolojisi","Öğr.Gör. Ahmet Yüksel","Laboratuvar - II ","Dr.Öğr.Üyesi Gülenay Alevay KILIÇ","UYGUNDUR",null,"25.06.2021","14:00:00"]
["Halilcan","GÜMÜŞTEKIN",192113027,"İklimlendirme ve Soğutma Teknolojisi","Öğr.Gör. Ahmet Yüksel","Havalandırma Sistemi","Dr.Öğr.Üyesi Gülenay Alevay KILIÇ","UYGUNDUR",null,"25.06.2021","11:00:00"]
["Ramazan ","ÇELIK ",192113021,"İklimlendirme ve Soğutma Teknolojisi","Öğr.Gör. Ahmet Yüksel","Laboratuvar - II ","Dr.Öğr.Üyesi Gülenay Alevay KILIÇ","UYGUNDUR",null,"25.06.2021","14:00:00"]
["Fatih","TÜRCAN",192113017,"İklimlendirme ve Soğutma Teknolojisi","Öğr.Gör. Ahmet Yüksel","İç Hava Kalitesi",null,"UYGUN DEĞİLDİR","3'TEN FAZLA ZAYIFI VAR",""]
["Fatih","TÜRCAN",192113017,"İklimlendirme ve Soğutma Teknolojisi","Öğr.Gör. Ahmet Yüksel","Laboratuvar - II ",null,"UYGUN DEĞİLDİR","3'TEN FAZLA ZAYIFI VAR",""]
["Fatih","TÜRCAN",192113017,"İklimlendirme ve Soğutma Teknolojisi","Öğr.Gör. Ahmet Yüksel","İç Hava Kalitesi",null,"UYGUN DEĞİLDİR","3'TEN FAZLA ZAYIFI VAR",""]
["Berat","KARAGÖZ",192113023,"İklimlendirme ve Soğutma Teknolojisi","Öğr.Gör. Cüneyt Tunçkal","Havalandırma Sistemi","Dr.Öğr.Üyesi Gülenay Alevay KILIÇ","UYGUNDUR",null,"25.06.2021","11:00:00"]
["Berat","KARAGÖZ",192113023,"İklimlendirme ve Soğutma Teknolojisi","Öğr.Gör. Cüneyt Tunçkal","Laboratuvar - II ","Dr.Öğr.Üyesi Gülenay Alevay KILIÇ","UYGUNDUR",null,"25.06.2021","14:00:00"]
["Gökhan","ÖZER",162113813,"İklimlendirme ve Soğutma Teknolojisi","Öğr.Gör. Mehmet Şirin","Yabancı Dil - II","Öğr.Gör. Baki KARAKUŞ","UYGUNDUR",null,"25.06.2021","10:00-12:00"]
["Gökhan","ÖZER",162113813,"İklimlendirme ve Soğutma Teknolojisi","Öğr.Gör. Mehmet Şirin","Havalandırma Sistemleri","Dr.Öğr.Üyesi Gülenay Alevay KILIÇ","UYGUNDUR",null,"25.06.2021","11:00:00"]
["Ayşegül Reyyan"," SÖZEN",192142032,"Marina ve Yat İşletmeciliği","Öğr.Gör. H. Caner Taşçı","Misafir İlişkileri ","Öğr.Gör. Çağrı DİLMEN","UYGUNDUR",null,"25.06.2021","11:00-17:00"]
["Ayşegül Reyyan"," SÖZEN",192142032,"Marina ve Yat İşletmeciliği","Öğr.Gör. H. Caner Taşçı","Deniz turizmi pazarlaması","Öğr.Gör. Yasin ÖZASLAN","UYGUNDUR",null,"25.06.2021","11:00-17:00"]
["Ayşegül Reyyan"," SÖZEN",192142032,"Marina ve Yat İşletmeciliği","Öğr.Gör. H. Caner Taşçı","Genel Turizm ","Öğr.Gör. Mehmet Emin TURA","UYGUNDUR",null,"25.06.2021","11.00-17.00"]
["Mustafa Kemal","KURT",192142007,"Marina ve Yat İşletmeciliği","Öğr.Gör. H. Caner Taşçı","Türk Dili - I",null,"UYGUN DEĞİLDİR","BAŞARILI DERS",{"$f":"IF(H129=\"UYGUNDUR\",\"25.06.2021\",\"\")","v":""}]
["Mustafa Kemal","KURT",192142007,"Marina ve Yat İşletmeciliği","Öğr.Gör. H. Caner Taşçı","Misafir İlişkileri",null,"UYGUN DEĞİLDİR","BAŞARILI DERS",""]
["Eyüp","KAYMAZ",192142031,"Marina ve Yat İşletmeciliği","Öğr.Gör. H. Caner Taşçı","Deniz Turizmi Pazarlaması","Öğr.Gör. Yasin ÖZASLAN","UYGUNDUR",null,"25.06.2021","11.00-17.00"]
["Eyüp","KAYMAZ",192142031,"Marina ve Yat İşletmeciliği","Öğr.Gör. H. Caner Taşçı","Türk Dili - I","Öğr.Gör. Ezgi ŞAHİN SEVDİ","UYGUNDUR",null,"25.06.2021","15.00-16.00"]
["Eftal","ŞAHIN",192142016,"Marina ve Yat İşletmeciliği","Öğr.Gör. H. Caner Taşçı","Pişirme Teknikleri","Öğr.Gör. Arzu GÜZEL ÇAKMAK","UYGUNDUR",null,"25.06.2021","11.00-17.00"]
["Metehan","ACIBUCU",192142038,"Marina ve Yat İşletmeciliği","Öğr.Gör. H. Caner Taşçı","Deniz Turizmi Pazarlaması","Öğr.Gör. Yasin ÖZASLAN","UYGUNDUR",null,"25.06.2021","11.00-17.00"]
["Doğukan","PARILTI",202141030,"Marina ve Yat İşletmeciliği","Öğr.Gör. Hakan Kahramaner","Marinalarda Risk Yönetimi",null,"UYGUN DEĞİLDİR","2020 GİRİŞLİ",""]
["Doğukan","PARILTI",202141030,"Marina ve Yat İşletmeciliği","Öğr.Gör. Hakan Kahramaner","Deniz Motorları",null,"UYGUN DEĞİLDİR","2020 GİRİŞLİ",""]
["Doğukan","PARILTI",202141030,"Marina ve Yat İşletmeciliği","Öğr.Gör. Hakan Kahramaner","Seyir - II",null,"UYGUN DEĞİLDİR","2020 GİRİŞLİ",""]
["Mustafa Batuhan","OKATAN",192141044,"Marina ve Yat İşletmeciliği","Öğr.Gör. Hakan Kahramaner","Deniz Turizmi Pazarlaması ","Öğr.Gör. Yasin ÖZASLAN","UYGUNDUR",null,"25.06.2021","11.00-17.00"]
["Emir","AKSAKAL",192141012,"Marina ve Yat İşletmeciliği","Öğr.Gör. Hakan Kahramaner","Deniz Hukuku Ve Uluslararası Denizcilik Sözleşmeleri","Öğr.Gör. Hüseyin Caner TAŞCI","UYGUNDUR",null,"25.06.2021","11.00-17.00"]
["Berke Emir ","BAĞDAT",192141026,"Marina ve Yat İşletmeciliği","Öğr.Gör. Hakan Kahramaner","Yiyecek İçecek Servis Bilgisi",null,"UYGUN DEĞİLDİR","AKTS YÜKÜ TAMAMLANMAMIŞ",""]
["Bartu","KARADAĞ",192141040,"Marina ve Yat İşletmeciliği","Öğr.Gör. Hakan Kahramaner","Marinalarda Risk Yönetimi","Öğr.Gör. Okan BÜYÜKACAR","UYGUNDUR",null,"25.06.2021","15.00"]
["Yunus Emircan ","GÖKDERE",192117019,"Pazarlama","Öğr.Gör. Duygu Talih Akkaya ","Marka Yönetimi ","Öğr.Gör. Zeynep AKYÜREK","UYGUNDUR",null,"25.06.2021","12.00"]
["Elif Beyza ","DÜZENLI ",172119009,"Peyzaj ve Süs Bitkileri","Öğr.Gör. Füsun Köksal","Yönlendirilmiş Çalışma ","Dr.Öğr.Üyesi Gül YÜCEL","UYGUNDUR",null,"25.06.2021","11:00-13:00"]
["Cennet","KORKMAZ",112119008,"Peyzaj ve Süs Bitkileri","Öğr.Gör. Füsun Köksal","Atatürk İlkeleri ve İnkilap Tarihi - I","Dr.Öğr.Üyesi Hacı Emin SEZER","UYGUNDUR",null,"25.06.2021","13:00-15:00"]
["Emre ","DONK",182119026,"Peyzaj ve Süs Bitkileri","Öğr.Gör. Füsun Köksal","Mevsimlik Çiçek Yetiştiriciliği ","Dr.Öğr.Üyesi Gül YÜCEL","UYGUNDUR",null,"25.06.2021","11:00-13:00"]
["Emre ","DONK",182119026,"Peyzaj ve Süs Bitkileri","Öğr.Gör. Füsun Köksal","İç Mekan Süs Bitkileri Yetiştiriciliği ","Dr.Öğr.Üyesi Gül YÜCEL","UYGUNDUR",null,"25.06.2021","15:00-17:00"]
["Emre ","DONK",182119026,"Peyzaj ve Süs Bitkileri","Öğr.Gör. Füsun Köksal","Fidanlık Tesisi ve Yönetimi ","Dr.Öğr.Üyesi Gül YÜCEL","UYGUNDUR",null,"25.06.2021","13:00-15:00"]
["Ada Doğa ","GÜMÜŞ",192119009,"Peyzaj ve Süs Bitkileri","Öğr.Gör. Füsun Köksal","Peyzajda Ölçme Bilgisi","Yusuf Evren Doğan","UYGUNDUR",null,"25.06.2021","15:00-17:00"]
["Ada Doğa ","GÜMÜŞ",192119009,"Peyzaj ve Süs Bitkileri","Öğr.Gör. Füsun Köksal","Dış Mekan Süs Bitkileri Yetiştiriciliği-I","Füsun Köksal ","UYGUNDUR",null,"25.06.2021","13:00-15:00"]
["Ada Doğa ","GÜMÜŞ",192119009,"Peyzaj ve Süs Bitkileri","Öğr.Gör. Füsun Köksal","Yönlendirilmiş Çalışma","Gül Yücel","UYGUNDUR",null,"25.06.2021","11:00-13:00"]
["Kadir","AYDIN",182121019,"Sivil Savunma ve İtfaiyecilik","Öğr.Gör. Burcu Alkan","Türk Dili - I",null,"UYGUN DEĞİLDİR","ALINMAYAN DERS VAR",""]
["Kadir","AYDIN",182121020,"Sivil Savunma ve İtfaiyecilik","Öğr.Gör. Burcu Alkan","Yabancı Dil-I",null,"UYGUN DEĞİLDİR","ALINMAYAN DERS VAR",""]
["Kadir","AYDIN",182121021,"Sivil Savunma ve İtfaiyecilik","Öğr.Gör. Burcu Alkan","Akışkanlar Mekaniği",null,"UYGUN DEĞİLDİR","ALINMAYAN DERS VAR",""]
["Mehmet Emre","ALACA",192121048,"Sivil Savunma ve İtfaiyecilik","Öğr.Gör. Ersel Kılıç ","Yapı ve Tesisat Bilgisi",null,"UYGUN DEĞİLDİR","ALINMAYAN DERS VAR",""]
["Beyzanur","KORKMAZ",192121062,"Sivil Savunma ve İtfaiyecilik","Öğr.Gör. Ersel Kılıç ","Afet Psikolojisi",null,"UYGUN DEĞİLDİR","ALINMAYAN DERS VAR",""]
["Beyzanur","KORKMAZ",192121062,"Sivil Savunma ve İtfaiyecilik","Öğr.Gör. Ersel Kılıç ","Kalite ve Güvence",null,"UYGUN DEĞİLDİR","ALINMAYAN DERS VAR",""]
["Fatih","VURAL",192121040,"Sivil Savunma ve İtfaiyecilik","Öğr.Gör. Ersel Kılıç ","Kimya ",null,"UYGUN DEĞİLDİR","MEZUN DURUMDA DEĞİL.",""]
["Fatih","VURAL",192121040,"Sivil Savunma ve İtfaiyecilik","Öğr.Gör. Ersel Kılıç ","Teknolojinin Bilimsel İlkeleri ",null,"UYGUN DEĞİLDİR","MEZUN DURUMDA DEĞİL.",""]
["Fatih","VURAL",192121040,"Sivil Savunma ve İtfaiyecilik","Öğr.Gör. Ersel Kılıç ","Bilgisayar Destekli Tasarım ",null,"UYGUN DEĞİLDİR","MEZUN DURUMDA DEĞİL.",""]
["Ahmet","ALICI",192121036,"Sivil Savunma ve İtfaiyecilik","Öğr.Gör. Ersel Kılıç ","Kimya","Öğr.Gör. Burcu ALKAN","UYGUNDUR",null,"25.06.2021","14:00-15:00"]
["Ahmet","ALICI",192121036,"Sivil Savunma ve İtfaiyecilik","Öğr.Gör. Ersel Kılıç ","Genel Teknik İletişim","Dr.Öğr.Üyesi Mehmet EKİCİ","UYGUNDUR",null,"25.06.2021","11:00-12:00"]
["Ahmet","ALICI",192121036,"Sivil Savunma ve İtfaiyecilik","Öğr.Gör. Ersel Kılıç ","Afet psikolojisi ","Öğr.Gör. Burcu ALKAN","UYGUNDUR",null,"25.06.2021","16:00-17:00"]
["Musa","KAR",192102015,"Turizm ve Otel İşletmeciliği","Öğr.Gör. Çağrı Dilmen","Konuk Giriş Çıkış İşlemleri ","Öğr.Gör. Çağrı DİLMEN","UYGUNDUR",null,"25.06.2021","11:00-17:00"]
["Cansu ","ÜNLÜ ",192101043,"Turizm ve Otel İşletmeciliği","Öğr.Gör. Çağrı Dilmen","Odalar Bölümü Yönetimi ",null,"UYGUN DEĞİLDİR","ALINMAYAN DERS VAR",""]
["Sümeyye","SAĞLAM",192101049,"Turizm ve Otel İşletmeciliği","Öğr.Gör. Çağrı Dilmen","Odalar Bölümü Yönetimi","Öğr.Gör. Yasin ÖZASLAN","UYGUNDUR",null,"25.06.2021","11:00-17:00"]
["Çağla","SAĞDIÇ",192101047,"Turizm ve Otel İşletmeciliği","Öğr.Gör. Çağrı Dilmen","Konaklama İşletmeleri Muhasebesi","Öğr.Gör. Fatih TAŞPINAR","UYGUNDUR",null,"25.06.2021","11:00-17:00"]
["Beyza","YIĞIT",192101048,"Turizm ve Otel İşletmeciliği","Öğr.Gör. Çağrı Dilmen","Yabancı Dil - I","Dr.Öğr.Üyesi Gülay BAYRAMOĞLU","UYGUNDUR",null,"25.06.2021","11:00-17:00"]
["Beyza","YIĞIT",192101048,"Turizm ve Otel İşletmeciliği","Öğr.Gör. Çağrı Dilmen","Konaklama İşletmeleri Muhasebesi ","Öğr.Gör. Fatih TAŞPINAR","UYGUNDUR",null,"25.06.2021","11:00-17:00"]
["Beyza","YIĞIT",192101048,"Turizm ve Otel İşletmeciliği","Öğr.Gör. Çağrı Dilmen","Konuk Giriş Çıkış İşlemleri ","Öğr.Gör. Çağrı DİLMEN","UYGUNDUR",null,"25.06.2021","11:00-17:00"]
["Esra","VAROLA",192101052,"Turizm ve Otel İşletmeciliği","Öğr.Gör. Çağrı Dilmen","Odalar Bölümü Yönetimi","Öğr.Gör. Yasin ÖZASLAN","UYGUNDUR",null,"25.06.2021","11:00-17:00"]
["Mahmut Şevket ","ÜNALAN ",192102038,"Turizm ve Otel İşletmeciliği","Öğr.Gör. Çağrı Dilmen","Konuk Giriş Çıkış İşlemleri ","Öğr.Gör. Çağrı DİLMEN","UYGUNDUR",null,"25.06.2021","11:00-17:00"]
["Taha","ÇAĞLAYAN",192102034,"Turizm ve Otel İşletmeciliği","Öğr.Gör. Çağrı Dilmen","Konuk Giriş Çıkış İşlemleri ",null,"UYGUN DEĞİLDİR","ALINMAYAN DERS VAR",""]
["Taha","ÇAĞLAYAN",192102034,"Turizm ve Otel İşletmeciliği","Öğr.Gör. Çağrı Dilmen","Atatürk İlkeleri Ve İnkılap Tarihi - I",null,"UYGUN DEĞİLDİR","ALINMAYAN DERS VAR",""]
["Gamze Gül ","POLAT",192101058,"Turizm ve Otel İşletmeciliği","Öğr.Gör. Çağrı Dilmen","Konuk Giriş Çıkış İşlemleri","Öğr.Gör. Çağrı DİLMEN","UYGUNDUR",null,"25.06.2021","11:00-17:00"]
["Gamze Gül ","POLAT",192101058,"Turizm ve Otel İşletmeciliği","Öğr.Gör. Çağrı Dilmen","Odalar Bölümü Yönetimi","Öğr.Gör. Yasin ÖZASLAN","UYGUNDUR",null,"25.06.2021","11:00-17:00"]
["Berk","BELGE",192101026,"Turizm ve Otel İşletmeciliği","Öğr.Gör. Çağrı Dilmen","Yabancı Dil - II",null,"UYGUN DEĞİLDİR","ALINMAYAN DERS VAR",""]
["Berk","BELGE",192101026,"Turizm ve Otel İşletmeciliği","Öğr.Gör. Çağrı Dilmen","Acenta Muhasebesi",null,"UYGUN DEĞİLDİR","ALINMAYAN DERS VAR",""]
["Emrullah","ÇELİK",192102017,"Turizm ve Otel İşletmeciliği","Öğr.Gör. Çağrı Dilmen","Konuk Giriş Çıkış İşlemleri",null,"UYGUN DEĞİLDİR","ALINMAYAN DERS VAR",""]
["Şevval Şerife","DÖNMEZ",192102009,"Turizm ve Otel İşletmeciliği","Öğr.Gör. Çağrı Dilmen","Odalar Bölümü Yönetimi","Öğr.Gör. Yasin ÖZASLAN","UYGUNDUR",null,"25.06.2021","11:00-17:00"]
["Yaren","IŞIK",182101021,"Turizm ve Otel İşletmeciliği","Öğr.Gör. Yasin Özaslan","Odalar Bölümü Yönetimi",null,"UYGUN DEĞİLDİR","ALINMAYAN DERS VAR",""]
["Mehmet Şahin","HİŞİR",182101043,"Turizm ve Otel İşletmeciliği","Öğr.Gör. Yasin Özaslan","Odalar Bölümü Yönetimi",null,"UYGUN DEĞİLDİR","3'TEN FAZLA ZAYIFI VAR",""]
["Mehmet Şahin","HİŞİR",182101043,"Turizm ve Otel İşletmeciliği","Öğr.Gör. Yasin Özaslan","Yabancı Dil - II",null,"UYGUN DEĞİLDİR","3'TEN FAZLA ZAYIFI VAR",""]
["Mehmet Şahin","HİŞİR",182101043,"Turizm ve Otel İşletmeciliği","Öğr.Gör. Yasin Özaslan",null,null,"UYGUN DEĞİLDİR","3'TEN FAZLA ZAYIFI VAR",""]
["Fatma","VAR",182101022,"Turizm ve Otel İşletmeciliği","Öğr.Gör. Yasin Özaslan","Acenta Muhasebesi","Öğr.Gör. Yasin ÖZASLAN","UYGUNDUR",null,"25.06.2021","11:00-17:00"]
["Fatma","VAR",182101022,"Turizm ve Otel İşletmeciliği","Öğr.Gör. Yasin Özaslan","Türk Dili - I","Öğr.Gör. Ezgi ŞAHİN SEVDİ","UYGUNDUR",null,"25.06.2021","15:00-16:00"]
["Fatma","VAR",182101022,"Turizm ve Otel İşletmeciliği","Öğr.Gör. Yasin Özaslan","Yabancı Dil - I","Dr.Öğr.Üyesi Gülay BAYRAMOĞLU","UYGUNDUR",null,"25.06.2021","11:00-17:00"]

{"sheet":"Sayfa1","index":1,"n_rows":10,"n_cols":9,"rows_kept":10,"merged":[[0,0,0,6]]}
["2020-2021 Eğitim Öğretim Yılı Bahar Yarıyılı Sonu Üç Ders Sınav Başvuru Listesi"]
["Adınız:","Soyadınız","Okul Numaranız","Bölümünüz","Danışmanınız","Başvuru Yapılan Ders (1. Ders)","Dersin Öğretim Elemanı (1.Ders)","Başvuru Sonucu \n(Uygun/Uygun Değildir)","Açıklama \n(Uygun Olmayanlar İçin)"]
["Elif Beyza ","DÜZENLI ",172119009,"Peyzaj ve Süs Bitkileri","Öğr.Gör. Füsun Köksal","Yönlendirilmiş Çalışma ","Gül Yücel "]
["Cennet","KORKMAZ",112119008,"Peyzaj ve Süs Bitkileri","Öğr.Gör. Füsun Köksal","Atatürk ve inkılap tarihi 1","Bilmiyorum"]
["Emre ","DONK",182119026,"Peyzaj ve Süs Bitkileri","Öğr.Gör. Füsun Köksal","Mevsimlik çiçek yetiştiriciliği ","Gül yücel"]
["Emre ","DONK",182119026,"Peyzaj ve Süs Bitkileri","Öğr.Gör. Füsun Köksal","İç mekan süs bitkileri yetiştiriciliği ","Gül yücel"]
["Emre ","DONK",182119026,"Peyzaj ve Süs Bitkileri","Öğr.Gör. Füsun Köksal","Fidanlık tesisi ve yönetimi ","Gül yücel"]
["Ada Doğa ","GÜMÜŞ",192119009,"Peyzaj ve Süs Bitkileri","Öğr.Gör. Füsun Köksal","Peyzajda Ölçme Bilgisi","Yusuf Evren Doğan"]
["Ada Doğa ","GÜMÜŞ",192119009,"Peyzaj ve Süs Bitkileri","Öğr.Gör. Füsun Köksal","Dış Mekan Süs Bitkileri Yetiştiriciliği-I","Füsun Köksal "]
["Ada Doğa ","GÜMÜŞ",192119009,"Peyzaj ve Süs Bitkileri","Öğr.Gör. Füsun Köksal","Yönlendirilmiş Çalışma","Gül Yücel"]